fUSD/lending_fUSD_20240709
["ID","MTS","AMOUNT","RATE_DAILY","PERIOD"]
[331561815,1720506633335,-12931.87640585,0.00013102,2]
[331561816,1720506633343,-219.5,0.00013122,2]
[331561817,1720506633353,-2500.45924448,0.00013128,2]
[331561818,1720506633362,-219.5,0.00013157,2]
[331561819,1720506633372,-219.5,0.00013191,2]
[331561820,1720506633381,-219.5,0.00013226,2]
[331561821,1720506633391,-219.5,0.00013261,2]
[331561822,1720506633400,-219.5,0.00013296,2]
[331561823,1720506633409,-400.0,0.000133,4]
[331561824,1720506633419,-219.5,0.0001333,2]
[331561825,1720506633428,-800.0,0.000134,4]
[331561826,1720506633438,-2015.8949,0.00013403,2]
[331561827,1720506633447,-1200.0,0.000135,4]
[331561828,1720506633457,-227.27128939,0.00013516,2]
[331561829,1720506633467,-255.0,0.0001357,2]
[331561830,1720506633477,-443.37432671,0.00013574,2]
[331561831,1720506633489,-83.52654902,0.00013574,2]
[331561832,1720506633498,-212.4753,0.000136,2]
[331561833,1720506633507,-1600.0,0.000136,4]
[331561834,1720506633517,-2751.0,0.00013699,2]
[331561835,1720506633526,-250.0,0.00013699,2]
[331561836,1720506633536,-200.0,0.00013699,2]
[331561837,1720506633546,-259.33,0.00013699,2]
[331561838,1720506633556,-2000.0,0.000137,5]
[331561839,1720506633565,-328.0,0.0001372,2]
[331561840,1720506633575,-173.5,0.00013797,2]
[331561841,1720506633585,-400.0,0.000138,5]
[331561842,1720506633594,-1000.0,0.000138,2]
[331561843,1720506633604,-1846.02558573,0.000138,2]
[331561844,1720506633613,-2500.0,0.000138,2]
[331561845,1720506633623,-261.78,0.00013804,2]
[331561846,1720506633632,-3000.0,0.00013888,2]
[331561847,1720506633642,-500.0,0.00013888,2]
[331561848,1720506633651,-200.0,0.00013888,2]
[331561849,1720506633661,-463.35873498,0.00013889,2]
[331561850,1720506633670,-652.52,0.0001389,3]
[331561851,1720506633680,-1494.818369,0.000139,2]
[331561852,1720506633690,-522.68953149,0.000139,5]
[331561853,1720506633704,-467.0815,0.000139,2]
[331561854,1720506633714,-1000.0,0.000139,2]
[331561855,1720506633725,-1000.0,0.000139,2]
[331561856,1720506633734,-162.26611918,0.000139,2]
[331561857,1720506633744,-146052.2035,0.000139,2]
[331561858,1720506633755,-156.62970523,0.000139,2]
[331561859,1720506633765,-400.0,0.000139,5]
[331561860,1720506633774,-159.98121098,0.000139,2]
[331561861,1720506633784,-417.93936495,0.00013963,2]
[331561862,1720506633795,-308.60836886,0.00013989,2]
[331561863,1720506633806,-188.2598793,0.00013989,2]
[331561864,1720506633816,-283.7099073,0.00013989,2]
[331561865,1720506633826,-13852.36650812,0.00013995,2]
[331561866,1720506633839,-13763.97736188,0.00013995,2]
[331561867,1720506633849,-181.52155116,0.00013999,2]
[331561868,1720506633858,-5927.88762708,0.00013999,2]
[331561869,1720506633867,-623.0,0.00014,2]
[331561870,1720506633878,-4178.75693872,0.00014,2]
[331561871,1720506633889,-446.45853724,0.00014,2]
[331561872,1720506633902,-628.42,0.00014,2]
[331562072,1720506638934,-196.98474805,0.0001399,2]
[331562079,1720506640788,-202.45630761,0.00013999,3]
[331562082,1720506640815,-257.97018745,0.00014,2]
[331562086,1720506640844,-5524.98389116,0.00014,2]
[331562090,1720506640869,-26977.89019066,0.00014,2]
[331562091,1720506640881,-1587.81759761,0.00014,2]
[331562092,1720506640893,-461.08286626,0.00014,2]
[331562093,1720506640905,-11213.51705,0.00014,2]
[331562094,1720506640917,-27186.68793565,0.00014,2]
[331562095,1720506640946,-665.3051719,0.00014,2]
[331562096,1720506640958,-354.451,0.00014,2]
[331562097,1720506641008,-612.18240239,0.00014,2]
[331562098,1720506641020,-27134.99999995,0.00014,2]
[331562099,1720506641033,-500.0,0.00014,2]
[331562100,1720506641044,-52544.39856408,0.00014,2]
[331562101,1720506641058,-416.01656347,0.00014,2]
[331562102,1720506641117,-150.50133858,0.000139,2]
[331562103,1720506641126,-319.7741812,0.00013999,2]
[331562104,1720506641136,-181.61370021,0.00014,2]
[331562105,1720506641148,-585.97499997,0.00014,2]
[331562106,1720506641159,-677.49,0.00014,2]
[331562107,1720506641171,-3106.99666799,0.00014,2]
[331562108,1720506641183,-846.52210567,0.00014,2]
[331562109,1720506641194,-153999.63102167,0.00014,2]
[331562110,1720506641536,-6496.46948832,0.00014,2]
[331562111,1720506641547,-511.70455756,0.00014,2]
[331562112,1720506641560,-14901.43966287,0.00014,2]
[331562113,1720506641571,-1659.03255927,0.00014,2]
[331562114,1720506641581,-334.80977324,0.00014,2]
[331562115,1720506641592,-459.07926206,0.00014,2]
[331562116,1720506641608,-536.20283951,0.00014,2]
[331562117,1720506641620,-9171.306,0.00014,2]
[331562118,1720506641631,-927.22751103,0.00014,2]
[331562119,1720506641642,-97911.05109324,0.00014,2]
[331562120,1720506641654,-771.144,0.00014,2]
[331562121,1720506641664,-11548.30513058,0.00014,2]
[331562122,1720506641676,-3385.06282993,0.00014,2]
[331562123,1720506641687,-500.0,0.00014,2]
[331562124,1720506641698,-681.43362743,0.00014,2]
[331562125,1720506641709,-4371.83669694,0.00014,2]
[331562126,1720506641720,-402.89643277,0.00014,2]
[331562127,1720506641733,-258.11,0.00014,2]
[331562128,1720506641745,-500.0,0.00014,2]
[331562131,1720506642919,-461.36,0.000138,2]
[331562132,1720506644193,-486.2125,0.000138,2]
[331562133,1720506644205,-452.7153,0.000138,2]
[331562134,1720506644215,-434.2507,0.000139,2]
[331562135,1720506644225,-2670.97168484,0.00014,2]
[331562136,1720506644246,-523.86850895,0.00014,2]
[331562138,1720506646044,-2161.95499629,0.000138,2]
[331562139,1720506646054,-725.35274871,0.00014,2]
[331562140,1720506646068,-11519.3,0.00014,2]
[331562141,1720506738389,2495.57012719,0.00011199,2]
[331562142,1720506755650,1399.54620502,0.00011199,2]
[331562143,1720506814472,588.64260855,0.00011199,2]
[331562144,1720506862391,487.27787596,0.00011199,2]
[331562145,1720506872853,156.12745484,0.00011199,2]
[331562146,1720506872890,155.35621834,0.00011199,2]
[331562147,1720506878366,227.27128939,0.00011199,2]
[331562148,1720506891692,255.56085265,0.00011199,2]
[331562149,1720506912567,266.43574909,0.00011199,2]
[331562151,1720506970199,254.25713924,0.00011199,2]
[331562155,1720507107443,463.2,0.00010637,2]
[331562156,1720507274304,783.54283326,0.00011199,2]
[331562157,1720507426174,155.0,0.00011199,2]
[331562158,1720507447497,366.83850843,0.00011199,2]
[331562160,1720507633946,470.57,0.00010466,2]
[331562162,1720507686911,2884.00026217,0.00011199,2]
[331562163,1720507774867,1265.58472584,0.00011199,2]
[331562164,1720507797969,1061.53799165,0.00011199,2]
[331562169,1720507831984,-957.61559212,0.0001207,2]
[331562170,1720507831994,-306.26,0.00012314,2]
[331562171,1720507832004,-627.00038312,0.00012314,2]
[331562172,1720507832015,-198.61,0.00012465,2]
[331562173,1720507832026,-250.0,0.00012497,2]
[331562174,1720507832036,-470.57,0.0001273,2]
[331562175,1720507832046,-165.52,0.0001284,2]
[331562176,1720507832055,-165.52,0.00012875,2]
[331562177,1720507832064,-178.42,0.00012887,2]
[331562178,1720507832073,-165.52,0.00012911,2]
[331562179,1720507832083,-165.52,0.00012946,2]
[331562180,1720507832093,-165.52,0.00012981,2]
[331562181,1720507832104,-830.01691357,0.00013,2]
[331562183,1720507832763,-2682.25988947,0.00013,2]
[331562184,1720507832773,-165.52,0.00013016,2]
[331562185,1720507832783,-165.52,0.00013051,2]
[331562188,1720507832794,-165.52,0.00013087,2]
[331562192,1720507832804,-150.0,0.00013104,2]
[331562197,1720507832814,-205.39,0.00013105,2]
[331562202,1720507832823,-1243.5,0.00013105,2]
[331562206,1720507832833,-154.9,0.00013105,2]
[331562210,1720507832842,-299.99,0.00013105,2]
[331562214,1720507832851,-16720.12,0.00013105,2]
[331562218,1720507832861,-499.99,0.00013109,2]
[331562221,1720507832871,-150.99,0.00013109,2]
[331562224,1720507832881,-2552.57,0.0001311,2]
[331562228,1720507832891,-165.52,0.00013122,2]
[331562231,1720507832900,-1332.48695783,0.00013128,2]
[331562233,1720507832909,-165.52,0.00013157,2]
[331562235,1720507832918,-165.52,0.00013192,2]
[331562237,1720507832928,-1000.0,0.00013213,2]
[331562239,1720507832937,-165.52,0.00013227,2]
[331562241,1720507832947,-165.52,0.00013263,2]
[331562243,1720507832957,-165.52,0.00013298,2]
[331562245,1720507832967,-165.52,0.00013333,2]
[331562247,1720507832977,-165.52,0.00013368,2]
[331562248,1720507832987,-165.52,0.00013403,2]
[331562249,1720507832997,-165.52,0.00013439,2]
[331562250,1720507833007,-254.03901734,0.00013472,2]
[331562251,1720507833019,-165.52,0.00013474,2]
[331562252,1720507833029,-165.52,0.00013509,2]
[331562253,1720507833039,-155.75226289,0.00013516,2]
[331562254,1720507833049,-292.58288724,0.00013543,2]
[331562255,1720507833059,-3858.59894812,0.00013574,2]
[331562256,1720507833068,-315.31849366,0.00013574,2]
[331562257,1720507833078,-2445.63545123,0.0001358,2]
[331562258,1720507833088,-173.5,0.00013679,2]
[331562259,1720507833098,-200.0,0.00013699,2]
[331562260,1720507833108,-250.0,0.00013699,2]
[331562261,1720507833118,-1159.13,0.00013699,2]
[331562262,1720507833129,-2488.09,0.00013699,2]
[331562263,1720507833140,-307.17,0.00013699,2]
[331562264,1720507833150,-13790.9694,0.000137,2]
[331562265,1720507833161,-1000.0,0.000137,2]
[331562266,1720507833171,-2500.0,0.000137,2]
[331562267,1720507833181,-24725.52964614,0.0001379,2]
[331562268,1720507833191,-1661.42302713,0.0001379,2]
[331562269,1720507833201,-251.61,0.0001379,3]
[331562270,1720507833211,-1945.75949667,0.00013799,2]
[331562271,1720507833220,-100000.0,0.000138,2]
[331562272,1720507833230,-30584.5771,0.000138,2]
[331562273,1720507833240,-500.0,0.000138,2]
[331562274,1720507833250,-1000.0,0.000138,2]
[331562275,1720507833260,-805.8684,0.000138,2]
[331562276,1720507833270,-12853.5592,0.000138,2]
[331562277,1720507833279,-781.7889,0.000138,2]
[331562278,1720507833290,-235.68479846,0.00013814,2]
[331562279,1720507833300,-235.68479846,0.00013829,2]
[331562280,1720507833310,-235.68479846,0.00013843,2]
[331562281,1720507833322,-235.68479846,0.00013857,2]
[331562282,1720507833332,-235.68479846,0.00013871,2]
[331562283,1720507833343,-2898.14815,0.0001388,2]
[331562284,1720507833354,-235.68479846,0.00013886,2]
[331562285,1720507833370,-500.0,0.00013888,2]
[331562286,1720507833380,-200.0,0.00013888,2]
[331562287,1720507833390,-503.88,0.0001389,2]
[331562288,1720507833400,-503.88,0.0001389,2]
[331562289,1720507833412,-503.88,0.0001389,2]
[331562290,1720507833422,-220.05,0.0001389,3]
[331562291,1720507833432,-1000.0,0.000139,2]
[331562292,1720507833444,-15374.29239799,0.000139,2]
[331562293,1720507833458,-5771.3,0.000139,2]
[331562294,1720507833470,-2203.8149747,0.000139,2]
[331562295,1720507833481,-4843.30926104,0.000139,2]
[331562298,1720507838040,-962.57160002,0.00013128,2]
[331562299,1720507838050,-1000.0,0.000137,2]
[331562300,1720507838060,-754.85,0.0001379,3]
[331562301,1720507838070,-664.07386349,0.00013899,2]
[331562302,1720507838079,-68916.67926627,0.000139,2]
[331562303,1720507838089,-25151.5611,0.000139,2]
[331562304,1720507838098,-1401.4409,0.000139,2]
[331562305,1720507838108,-3448.16762734,0.000139,2]
[331562306,1720507838119,-169.57491916,0.000139,2]
[331562307,1720507838128,-162.26611918,0.000139,2]
[331562308,1720507838139,-1246.4824724,0.000139,2]
[331562309,1720507838149,-235.68479846,0.000139,2]
[331562310,1720507838158,-556.60699162,0.000139,2]
[331562311,1720507838168,-417.93936495,0.0001392,2]
[331562312,1720507838178,-2898.14815,0.0001396,2]
[331562313,1720507838187,-179.89189734,0.0001399,2]
[331562314,1720507838197,-179.89189734,0.0001399,2]
[331562315,1720507838207,-179.89189734,0.0001399,2]
[331562316,1720507838216,-1680.8447899,0.00013995,2]
[331562317,1720507838226,-8617.9111382,0.00013995,2]
[331562318,1720507838235,-21767.5305264,0.00013995,2]
[331562319,1720507838244,-209.94764365,0.00013999,2]
[331562320,1720507838254,-5925.63188713,0.00013999,2]
[331562321,1720507838263,-500.0,0.00013999,2]
[331562322,1720507838272,-452.59512424,0.00013999,2]
[331562323,1720507838282,-475.82338898,0.00013999,2]
[331562324,1720507838291,-500.0,0.00013999,2]
[331562325,1720507838301,-500.0,0.00013999,2]
[331562326,1720507838310,-500.0,0.00013999,2]
[331562327,1720507838319,-500.0,0.00013999,2]
[331562328,1720507838329,-500.0,0.00013999,2]
[331562329,1720507838339,-500.0,0.00013999,2]
[331562330,1720507838348,-206.17824159,0.00013999,2]
[331562331,1720507838362,-500.0,0.00013999,2]
[331562332,1720507838381,-500.0,0.00013999,2]
[331562333,1720507838391,-500.0,0.00013999,2]
[331562334,1720507838400,-500.0,0.00013999,2]
[331562335,1720507838412,-500.0,0.00013999,2]
[331562336,1720507838422,-500.0,0.00013999,2]
[331562337,1720507838431,-398.72797041,0.00013999,2]
[331562339,1720507838441,-511.0,0.00014,2]
[331562341,1720507838450,-117778.05163092,0.00014,2]
[331562344,1720507838462,-14396.04468779,0.00014,2]
[331562346,1720507838474,-548.29775,0.00014,2]
[331562348,1720507838485,-58524.6080419,0.00014,2]
[331562352,1720507838508,-612.8173788,0.00014,2]
[331562354,1720507838518,-1014.6173005,0.00014,2]
[331562356,1720507838530,-55909.78023195,0.00014,2]
[331562358,1720507838541,-1544.59791416,0.00014,2]
[331562377,1720507840211,-54791.30636703,0.00014,2]
[331562532,1720507843115,-329.1979818,0.00014,2]
[331562544,1720507848529,-497.75,0.00014,2]
[331562545,1720507848540,-1216.07779227,0.00014,2]
[331562546,1720507848552,-4363.43453557,0.00014,2]
[331562547,1720507848563,-260.52864143,0.00014,2]
[331562548,1720507848578,-1763.45964178,0.00014,2]
[331562549,1720507848592,-6912.91240944,0.00014,2]
[331562550,1720507848604,-36866.90749795,0.00014,2]
[331562551,1720507848617,-390.98595403,0.00014,2]
[331562552,1720507947590,503.22,0.00010959,2]
[331562553,1720508079876,2496.09067824,0.00011199,2]
[331562554,1720508117711,1351.63392517,0.00011199,2]
[331562555,1720508156261,791.86312456,0.00011199,2]
[331562557,1720508165805,1249.55570818,0.00011199,2]
[331562559,1720508198844,665.23592433,0.00011199,2]
[331562561,1720508226143,524.43604053,0.00011199,2]
[331562562,1720508234358,156.44234833,0.00011199,2]
[331562563,1720508244427,526.70381718,0.00011199,2]
[331562564,1720508253034,487.72,0.00010768,2]
[331562565,1720508256408,250.70645294,0.00011199,2]
[331562568,1720508333069,164.1030384,0.00011199,2]
[331562569,1720508483078,694.22033167,0.00011199,2]
[331562572,1720508820061,495.33,0.00010575,2]
[331562573,1720508853287,908.46751284,0.00011199,2]
[331562574,1720509007795,886.92063115,0.00011199,2]
[331562597,1720509032212,-250.0,0.00012497,2]
[331562598,1720509032223,-9.37769393,0.0001255,2]
[331562605,1720509032719,-228.83230607,0.0001255,2]
[331562606,1720509032730,-239.26517355,0.000126,2]
[331562607,1720509032745,-422.90143693,0.000126,2]
[331562608,1720509032759,-150.0,0.000126,2]
[331562609,1720509032769,-121.62123305,0.000126,2]
[331562610,1720509032780,-378.37876695,0.000126,2]
[331562611,1720509032792,-447.13,0.000126,2]
[331562612,1720509032801,-160.27755312,0.00012606,2]
[331562613,1720509032812,-300.0,0.00012638,2]
[331562614,1720509032823,-5120.6228,0.00012639,2]
[331562615,1720509032832,-797.84,0.00012656,2]
[331562616,1720509032841,-183.98,0.00012695,2]
[331562617,1720509032850,-212.33,0.00012724,2]
[331562618,1720509032859,-150.0,0.00012738,2]
[331562619,1720509032868,-19885.40667483,0.00012739,2]
[331562620,1720509032881,-1502.92032109,0.00012739,2]
[331562621,1720509032892,-2511.67300408,0.00012739,2]
[331562622,1720509032902,-150.99,0.00012739,2]
[331562623,1720509032911,-1384.7039,0.000128,2]
[331562624,1720509032921,-495.33,0.00012838,2]
[331562625,1720509032931,-1000.0,0.00012988,2]
[331562626,1720509032941,-499.99,0.00012988,2]
[331562627,1720509032953,-5266.16,0.00012999,2]
[331562628,1720509032964,-169.73,0.00013077,2]
[331562629,1720509032973,-533.66826194,0.00013128,2]
[331562630,1720509032982,-255.67407275,0.00013128,2]
[331562631,1720509032991,-183.98,0.00013356,2]
[331562632,1720509033000,-14408.59660927,0.00013448,2]
[331562633,1720509033011,-339.85299,0.00013448,2]
[331562634,1720509033028,-913.34674057,0.00013448,2]
[331562635,1720509033040,-3317.59,0.00013448,2]
[331562636,1720509033053,-3603.53690901,0.00013448,2]
[331562637,1720509033067,-8202.0,0.00013448,2]
[331562638,1720509033078,-3142.88092348,0.00013448,2]
[331562639,1720509033089,-327.84989589,0.00013448,2]
[331562640,1720509033101,-299.34593178,0.00013448,2]
[331562641,1720509033111,-445.67202854,0.00013472,2]
[331562642,1720509033122,-266.5047714,0.00013472,2]
[331562643,1720509033131,-310.0,0.00013472,2]
[331562644,1720509033139,-214.93351119,0.00013472,2]
[331562645,1720509033151,-190.17308966,0.00013472,2]
[331562646,1720509033162,-2495.57012719,0.00013516,2]
[331562647,1720509033172,-284.1760476,0.00013516,2]
[331562648,1720509033181,-163.13,0.00013583,2]
[331562649,1720509033191,-160.27755312,0.000136,2]
[331562650,1720509033200,-1000.0,0.000136,2]
[331562651,1720509033210,-1063.22438243,0.000136,2]
[331562652,1720509033677,-789.29286824,0.000136,2]
[331562659,1720509038784,-647.48274933,0.000136,2]
[331562660,1720509038795,-321.90822086,0.000136,2]
[331562661,1720509038805,-297.49,0.00013699,2]
[331562663,1720509038816,-250.0,0.00013699,2]
[331562665,1720509038829,-1011.64476456,0.00013699,2]
[331562666,1720509038838,-382.2977,0.000137,2]
[331562667,1720509038848,-163.92642062,0.000137,2]
[331562668,1720509038861,-4474.43573524,0.000137,2]
[331562669,1720509038873,-527.99648139,0.000137,2]
[331562670,1720509038890,-13155.43099431,0.000137,2]
[331562671,1720509038902,-3265.55644233,0.000137,2]
[331562672,1720509038914,-1857.14049247,0.000137,2]
[331562673,1720509038926,-1765.0,0.000137,2]
[331562674,1720509038937,-2658.89648734,0.000137,2]
[331562675,1720509038949,-451.57864314,0.000137,2]
[331562676,1720509038961,-853.08727691,0.000137,2]
[331562677,1720509038973,-880.12,0.000137,2]
[331562678,1720509038984,-955.97027776,0.000137,2]
[331562679,1720509038996,-4936.4916975,0.000137,2]
[331562680,1720509039008,-64054.36905099,0.000137,2]
[331562681,1720509039018,-245000.0,0.000137,2]
[331562682,1720509039027,-176.2277216,0.00013729,2]
[331562683,1720509039038,-176.2277216,0.00013771,2]
[331562684,1720509039048,-6505.27088379,0.0001379,2]
[331562685,1720509039058,-2837.43322696,0.0001379,2]
[331562686,1720509039067,-1804.3232779,0.00013799,2]
[331562687,1720509039076,-176.2277216,0.00013814,2]
[331562688,1720509039086,-255.0,0.00013833,2]
[331562689,1720509039096,-176.2277216,0.00013857,2]
[331562690,1720509039107,-500.0,0.00013888,2]
[331562691,1720509039118,-200.0,0.00013888,2]
[331562692,1720509039129,-156.43092971,0.00013899,2]
[331562693,1720509039139,-1000.0,0.000139,2]
[331562694,1720509039149,-169.57491914,0.000139,2]
[331562695,1720509039160,-155.94167811,0.000139,2]
[331562696,1720509039170,-6502.07388978,0.000139,2]
[331562697,1720509039180,-176.2277216,0.000139,2]
[331562698,1720509039190,-330.22067901,0.000139,2]
[331562699,1720509039201,-417.93936495,0.00013926,2]
[331562700,1720509039211,-179.89189736,0.0001399,2]
[331562701,1720509039220,-179.89189736,0.0001399,2]
[331562702,1720509039230,-1219.744785,0.00013995,2]
[331562703,1720509039240,-500.0,0.00013999,2]
[331562704,1720509039250,-500.0,0.00013999,2]
[331562705,1720509039260,-351.91053523,0.00013999,2]
[331562706,1720509039270,-500.0,0.00013999,2]
[331562707,1720509039280,-500.0,0.00013999,2]
[331562708,1720509039290,-373.53577004,0.00013999,2]
[331562709,1720509039299,-500.0,0.00013999,2]
[331562710,1720509039309,-500.0,0.00013999,2]
[331562711,1720509039319,-500.0,0.00013999,2]
[331562712,1720509039328,-500.0,0.00013999,2]
[331562713,1720509039337,-500.0,0.00013999,2]
[331562714,1720509039347,-500.0,0.00013999,2]
[331562715,1720509039357,-217.32576084,0.00013999,2]
[331562716,1720509039367,-500.0,0.00013999,2]
[331562717,1720509039378,-500.0,0.00013999,2]
[331562718,1720509039388,-500.0,0.00013999,2]
[331562719,1720509039398,-500.0,0.00013999,2]
[331562720,1720509039408,-500.0,0.00013999,2]
[331562721,1720509039417,-500.0,0.00013999,2]
[331562722,1720509039428,-500.0,0.00013999,2]
[331562723,1720509039438,-500.0,0.00013999,2]
[331562724,1720509039448,-500.0,0.00013999,2]
[331562725,1720509039458,-500.0,0.00013999,2]
[331562726,1720509039468,-500.0,0.00013999,2]
[331562727,1720509039478,-500.0,0.00013999,2]
[331562728,1720509039488,-500.0,0.00013999,2]
[331562729,1720509039498,-500.0,0.00013999,2]
[331562730,1720509039508,-287.52381935,0.00013999,2]
[331562731,1720509039518,-308.65136778,0.00013999,2]
[331562732,1720509039529,-511.0,0.00014,2]
[331562733,1720509039539,-442203.74409904,0.00014,2]
[331562734,1720509039552,-24905.25111142,0.00014,2]
[331562744,1720509040344,-660.77323106,0.00014,2]
[331562745,1720509040453,-300.0,0.00014,2]
[331562746,1720509040563,-1028.03149207,0.00014,2]
[331562861,1720509044984,-582.24332987,0.00014,2]
[331562862,1720509045003,-421.488,0.00014,2]
[331562867,1720509046415,-689.212,0.00014,2]
[331562868,1720509046665,-2669.22283517,0.00014,2]
[331562869,1720509046677,-8770.37205314,0.00014,2]
[331562870,1720509046688,-190572.67179978,0.00014,2]
[331562871,1720509046776,-256.60117308,0.00014,2]
[331562876,1720509149542,315.0,0.00027,120]
[331562877,1720509387710,474.28975858,0.00011199,2]
[331562878,1720509394490,503.87072805,0.00011199,2]
[331562879,1720509447622,462490.49616858,0.00011199,2]
[331562880,1720509470393,477.79,0.00010805,2]
[331562881,1720509476600,155.0,0.00011199,2]
[331562883,1720509500421,214.65975808,0.00011199,2]
[331562884,1720509507879,205.67433584,0.00011199,2]
[331562886,1720509558200,266.56416366,0.00011199,2]
[331562888,1720509740576,-194.92136017,0.00012173,2]
[331562889,1720509740602,-300.0,0.00012248,2]
[331562890,1720509740631,-23900.0,0.00012249,2]
[331562891,1720509740667,-169.73,0.00012297,2]
[331562892,1720509740694,-410.77096163,0.00012302,2]
[331562893,1720509740718,-155.0,0.00012314,2]
[331562894,1720509740747,-435.061857,0.00012476,2]
[331562895,1720509740774,-204.4,0.0001252,2]
[331562896,1720509740801,-2310.20677094,0.00012521,2]
[331562897,1720509740826,-164.71,0.00012671,2]
[331562898,1720509740854,-250.0,0.00012692,2]
[331562899,1720509740880,-164.71,0.00012693,2]
[331562900,1720509740906,-164.71,0.00012714,2]
[331562901,1720509740933,-164.71,0.00012735,2]
[331562902,1720509740960,-1207.74,0.00012735,2]
[331562903,1720509740989,-9803.32905026,0.00012735,2]
[331562908,1720509941614,155.0,0.00011199,2]
[331562909,1720509949602,431.34572852,0.00011199,2]
[331562910,1720509986079,207.63218924,0.00011199,2]
[331562911,1720510054451,486.46,0.00010843,2]
[331562912,1720510123461,266.56416366,0.00011199,2]
[331562915,1720510169832,2496.09067824,0.00011199,2]
[331562927,1720510231508,-150.0,0.000126,2]
[331562928,1720510231518,-250.0,0.00012716,2]
[331562929,1720510231528,-150.0,0.00012728,2]
[331562930,1720510231538,-196.66094974,0.00012735,2]
[331562931,1720510231549,-499.99,0.00012735,2]
[331562932,1720510231560,-169.86,0.00012759,2]
[331562933,1720510231569,-1000.0,0.00012777,2]
[331562934,1720510231579,-250.0,0.00012779,2]
[331562935,1720510231588,-500.0,0.00012782,2]
[331562936,1720510231598,-679.1,0.00012792,2]
[331562937,1720510231607,-1892.68905026,0.00012928,2]
[331562938,1720510231621,-678.20214974,0.00012928,2]
[331562939,1720510231630,-252.21,0.00013028,2]
[331562940,1720510231640,-300.0,0.00013053,2]
[331562941,1720510231650,-150.0,0.00013053,2]
[331562942,1720510231661,-29999.99,0.00013054,2]
[331562943,1720510231670,-4417.99,0.00013054,2]
[331562944,1720510231680,-9505.08,0.00013054,2]
[331562945,1720510231690,-6254.98,0.00013054,2]
[331562946,1720510231699,-19999.99,0.00013054,2]
[331562947,1720510231711,-299.99,0.00013054,2]
[331562948,1720510231721,-486.46,0.00013107,2]
[331562949,1720510231731,-155.0,0.00013128,2]
[331562950,1720510231741,-507.3073,0.000135,2]
[331562951,1720510231752,-1226.8607,0.000135,2]
[331562952,1720510231762,-266.10989764,0.00013543,2]
[331562953,1720510231771,-413.21120921,0.00013574,2]
[331562954,1720510231780,-2496.09067824,0.00013574,2]
[331562955,1720510231790,-87255.8025,0.000136,2]
[331562956,1720510231799,-500.0,0.000136,2]
[331562957,1720510231808,-28578.9299,0.000136,2]
[331562958,1720510231818,-13598.813,0.000136,2]
[331562959,1720510231828,-24549.4043,0.000136,2]
[331562960,1720510231837,-371.36,0.00013699,2]
[331562962,1720510231846,-250.0,0.00013699,2]
[331562964,1720510231856,-500.0,0.00013699,2]
[331562968,1720510231867,-1176.03875563,0.0001379,2]
[331562969,1720510231876,-1623.89095011,0.00013799,2]
[331562970,1720510231886,-2549.5628,0.000138,2]
[331562972,1720510231895,-4248.9592247,0.0001386,2]
[331562974,1720510231905,-170.85238501,0.00013888,2]
[331562976,1720510232902,-329.14761499,0.00013888,2]
[331562977,1720510232912,-200.0,0.00013888,2]
[331562978,1720510232922,-258.5777561,0.000139,2]
[331562979,1720510232941,-638.49582452,0.000139,2]
[331562980,1720510232995,-102.92641938,0.000139,2]
[331562981,1720510233010,-306.2612845,0.000139,2]
[331562982,1720510233023,-914.70934891,0.000139,2]